[Event "*** Titled Tuesday Blitz"]
[Site "Chess.com"]
[Date "2020.04.14"]
[Round "3"]
[White "Vamostodorecto"]
[Black "HouseOfDurin"]
[Result "1-0"]
[WhiteElo "2506"]
[BlackElo "2065"]
[TimeControl "180+1"]
[EndTime "10:25:58 PDT"]
[Termination "Vamostodorecto won on time"]

1. d4 {[%clk 0:03:00.9]} 1... Nf6 {[%clk 0:02:59.6]} 2. c4 {[%clk 0:02:59.6]}
2... c5 {[%clk 0:02:59.8]} 3. d5 {[%clk 0:02:59.2]} 3... b5 {[%clk 0:03:00.1]}
4. cxb5 {[%clk 0:02:59]} 4... a6 {[%clk 0:03:00.6]} 5. Nc3 {[%clk 0:02:59.7]}
5... axb5 {[%clk 0:03:00.6]} 6. e4 {[%clk 0:03:00.3]} 6... b4 {[%clk 0:03:00.1]}
7. Nb5 {[%clk 0:03:00.9]} 7... d6 {[%clk 0:02:41.3]} 8. a4 {[%clk 0:02:59.9]}
8... bxa3 {[%clk 0:02:38.3]} 9. Rxa3 {[%clk 0:02:59.1]} 9... Rxa3 {[%clk
0:02:37.9]} 10. bxa3 {[%clk 0:03:00]} 10... Bd7 {[%clk 0:01:59.7]} 11. Qa4
{[%clk 0:02:58.7]} 11... Qb6 {[%clk 0:01:18.4]} 12. Bd2 {[%clk 0:02:55.4]} 12...
Bxb5 {[%clk 0:00:36.2]} 13. Bxb5+ {[%clk 0:02:53.1]} 13... Nbd7 {[%clk 0:00:35]}
14. Ba5 {[%clk 0:02:51.5]} 14... Qa7 {[%clk 0:00:27.2]} 15. Nf3 {[%clk
0:02:49.1]} 15... g6 {[%clk 0:00:26.9]} 16. e5 {[%clk 0:02:48.4]} 16... Nxd5
{[%clk 0:00:18.1]} 17. exd6 {[%clk 0:02:45]} 17... exd6 {[%clk 0:00:17.5]} 18.
O-O {[%clk 0:02:39.7]} 18... Be7 {[%clk 0:00:14.8]} 19. Bc6 {[%clk 0:02:22.2]}
19... Nf6 {[%clk 0:00:11.2]} 20. Re1 {[%clk 0:02:18.9]} 20... Kf8 {[%clk
0:00:11]} 21. Rxe7 {[%clk 0:02:12.5]} 21... Kxe7 {[%clk 0:00:10.4]} 22. Bd8+
{[%clk 0:02:11.7]} 22... Rxd8 {[%clk 0:00:08]} 23. Qxa7 {[%clk 0:02:11.8]} 23...
Kf8 {[%clk 0:00:02.5]} 24. Qc7 {[%clk 0:02:10.3]} 1-0

[Event "*** Titled Tuesday Blitz"]
[Site "Chess.com"]
[Date "2020.04.14"]
[Round "3"]
[White "KetiTsatsalashvili"]
[Black "GamayevOleg"]
[Result "0-1"]
[WhiteElo "2231"]
[BlackElo "2525"]
[TimeControl "180+1"]
[EndTime "10:25:59 PDT"]
[Termination "GamayevOleg won by resignation"]

1. d4 {[%clk 0:03:00.9]} 1... d6 {[%clk 0:03:00.1]} 2. Nf3 {[%clk 0:03:00.3]}
2... Nf6 {[%clk 0:03:00.4]} 3. c4 {[%clk 0:03:00.2]} 3... Nbd7 {[%clk
0:03:00.3]} 4. Nc3 {[%clk 0:02:59.5]} 4... e5 {[%clk 0:03:00.7]} 5. e4 {[%clk
0:02:59.9]} 5... c6 {[%clk 0:03:00.8]} 6. Be2 {[%clk 0:02:59.4]} 6... Be7 {[%clk
0:03:00.5]} 7. O-O {[%clk 0:02:59.4]} 7... O-O {[%clk 0:03:00.6]} 8. h3 {[%clk
0:02:59.3]} 8... exd4 {[%clk 0:03:00.8]} 9. Nxd4 {[%clk 0:02:58.2]} 9... Nb6
{[%clk 0:03:01.4]} 10. Bf4 {[%clk 0:02:54.5]} 10... Re8 {[%clk 0:03:01.5]} 11.
Re1 {[%clk 0:02:54.2]} 11... Bf8 {[%clk 0:03:01.8]} 12. Bf1 {[%clk 0:02:52.1]}
12... Nfd7 {[%clk 0:03:01.9]} 13. Qd2 {[%clk 0:02:45.7]} 13... Ne5 {[%clk
0:03:02.2]} 14. b3 {[%clk 0:02:45.1]} 14... a5 {[%clk 0:03:02.5]} 15. Rad1
{[%clk 0:02:45.1]} 15... a4 {[%clk 0:03:02.8]} 16. Qc2 {[%clk 0:02:39]} 16...
axb3 {[%clk 0:03:02.5]} 17. axb3 {[%clk 0:02:39.9]} 17... Nbd7 {[%clk
0:03:01.8]} 18. Bg3 {[%clk 0:02:35.9]} 18... Nc5 {[%clk 0:03:01.2]} 19. b4
{[%clk 0:02:35.5]} 19... Ncd7 {[%clk 0:03:00.9]} 20. Nf5 {[%clk 0:02:26.6]}
20... Qc7 {[%clk 0:02:59.8]} 21. Rd2 {[%clk 0:02:13.5]} 21... Nb6 {[%clk
0:02:58.4]} 22. Ne3 {[%clk 0:02:04.2]} 22... Be6 {[%clk 0:02:57.8]} 23. c5
{[%clk 0:02:00.4]} 23... dxc5 {[%clk 0:02:54.9]} 24. bxc5 {[%clk 0:01:57]} 24...
Nbd7 {[%clk 0:02:54.9]} 25. f4 {[%clk 0:01:52.8]} 25... Ng6 {[%clk 0:02:51.2]}
26. f5 {[%clk 0:01:41.8]} 26... Qxg3 {[%clk 0:02:49.6]} 27. fxe6 {[%clk
0:01:38.8]} 27... Qxe1 {[%clk 0:02:45.1]} 28. Re2 {[%clk 0:01:31.4]} 28... Qa1
{[%clk 0:02:37]} 29. exd7 {[%clk 0:01:30]} 29... Red8 {[%clk 0:02:36.9]} 30.
Ncd1 {[%clk 0:01:26.5]} 30... Rxd7 {[%clk 0:02:33.2]} 31. Nf5 {[%clk 0:01:24.8]}
31... Ne5 {[%clk 0:02:29.6]} 32. Nde3 {[%clk 0:01:23.4]} 32... g6 {[%clk
0:02:25.5]} 33. Nd6 {[%clk 0:01:19.9]} 33... Bxd6 {[%clk 0:02:23.6]} 34. cxd6
{[%clk 0:01:20.8]} 34... Rxd6 {[%clk 0:02:24]} 35. Qb3 {[%clk 0:01:11.1]} 35...
b5 {[%clk 0:02:14.7]} 36. Rf2 {[%clk 0:01:05.7]} 36... Qa3 {[%clk 0:02:09.1]}
37. Qxa3 {[%clk 0:00:52.1]} 37... Rxa3 {[%clk 0:02:10]} 38. Nc2 {[%clk
0:00:48.1]} 38... Ra2 {[%clk 0:02:06.7]} 0-1

[Event "*** Titled Tuesday Blitz"]
[Site "Chess.com"]
[Date "2020.04.14"]
[Round "3"]
[White "Hikaru"]
[Black "mitrabhaa"]
[Result "1-0"]
[WhiteElo "3241"]
[BlackElo "2615"]
[TimeControl "180+1"]
[EndTime "10:26:03 PDT"]
[Termination "Hikaru won by resignation"]

1. e4 {[%clk 0:03:00.9]} 1... c6 {[%clk 0:02:59.8]} 2. Nc3 {[%clk 0:03:00.3]}
2... d5 {[%clk 0:03:00.1]} 3. Nf3 {[%clk 0:03:00.5]} 3... dxe4 {[%clk
0:03:00.3]} 4. Nxe4 {[%clk 0:03:01.3]} 4... Nf6 {[%clk 0:03:00.8]} 5. Qe2 {[%clk
0:03:00.7]} 5... Nxe4 {[%clk 0:03:00.8]} 6. Qxe4 {[%clk 0:03:00.7]} 6... Be6
{[%clk 0:03:01.4]} 7. b3 {[%clk 0:03:00.5]} 7... Nd7 {[%clk 0:03:01.7]} 8. Bb2
{[%clk 0:03:00.6]} 8... Nf6 {[%clk 0:03:01.9]} 9. Qh4 {[%clk 0:02:57.5]} 9...
Bf5 {[%clk 0:03:02]} 10. O-O-O {[%clk 0:02:46.6]} 10... e6 {[%clk 0:02:57.9]}
11. Ne5 {[%clk 0:02:23]} 11... Be7 {[%clk 0:02:52.2]} 12. f4 {[%clk 0:02:19.2]}
12... a5 {[%clk 0:02:46.9]} 13. a4 {[%clk 0:02:09]} 13... O-O {[%clk 0:02:38.2]}
14. Qf2 {[%clk 0:02:05.7]} 14... Qc7 {[%clk 0:02:17.6]} 15. g4 {[%clk
0:02:03.3]} 15... Be4 {[%clk 0:02:15.5]} 16. Rg1 {[%clk 0:02:02.2]} 16... b5
{[%clk 0:02:09.1]} 17. g5 {[%clk 0:02:02.3]} 17... Nd5 {[%clk 0:02:05.9]} 18.
Qd4 {[%clk 0:01:56.7]} 18... f5 {[%clk 0:01:35.8]} 19. gxf6 {[%clk 0:01:49]}
19... Nxf6 {[%clk 0:01:35]} 20. Bh3 {[%clk 0:01:43.3]} 20... Bf5 {[%clk
0:01:31.5]} 21. Bxf5 {[%clk 0:01:42.8]} 21... exf5 {[%clk 0:01:31.8]} 22. Rde1
{[%clk 0:01:41.1]} 22... bxa4 {[%clk 0:01:29.6]} 23. Qc4+ {[%clk 0:01:39.3]}
23... Kh8 {[%clk 0:00:39.3]} 24. Nf7+ {[%clk 0:01:38.6]} 24... Kg8 {[%clk
0:00:36.2]} 25. Nh6+ {[%clk 0:01:38.4]} 25... Kh8 {[%clk 0:00:36.5]} 26. Qg8+
{[%clk 0:01:37.4]} 1-0

[Event "*** Titled Tuesday Blitz"]
[Site "Chess.com"]
[Date "2020.04.14"]
[Round "3"]
[White "okriak"]
[Black "Bykov_Egor"]
[Result "1-0"]
[WhiteElo "2767"]
[BlackElo "2551"]
[TimeControl "180+1"]
[EndTime "10:26:06 PDT"]
[Termination "okriak won by resignation"]

1. Nf3 {[%clk 0:03:00.9]} 1... Nf6 {[%clk 0:02:59.9]} 2. c4 {[%clk 0:03:01]}
2... e6 {[%clk 0:02:59.8]} 3. Nc3 {[%clk 0:03:01.3]} 3... Bb4 {[%clk 0:02:58.2]}
4. Qc2 {[%clk 0:03:00]} 4... O-O {[%clk 0:02:54.9]} 5. e3 {[%clk 0:02:59.7]}
5... b6 {[%clk 0:02:45.6]} 6. b3 {[%clk 0:02:58.9]} 6... Bb7 {[%clk 0:02:44]} 7.
Bb2 {[%clk 0:02:59.4]} 7... d6 {[%clk 0:02:17.8]} 8. Be2 {[%clk 0:02:53]} 8...
e5 {[%clk 0:02:05.9]} 9. Nd5 {[%clk 0:02:32.1]} 9... Bxd5 {[%clk 0:01:41.8]} 10.
cxd5 {[%clk 0:02:31.8]} 10... e4 {[%clk 0:01:16.3]} 11. Ng5 {[%clk 0:02:21.6]}
11... Nxd5 {[%clk 0:01:06.5]} 12. Nxe4 {[%clk 0:02:21.2]} 12... c5 {[%clk
0:00:49.1]} 13. Bf3 {[%clk 0:02:11.4]} 13... Na6 {[%clk 0:00:39.7]} 14. h4
{[%clk 0:02:04.3]} 14... Nac7 {[%clk 0:00:30.4]} 15. Ng5 {[%clk 0:02:03]} 15...
g6 {[%clk 0:00:29.4]} 16. Nxh7 {[%clk 0:01:56.6]} 16... Kxh7 {[%clk 0:00:25.9]}
17. h5 {[%clk 0:01:56.6]} 17... Kg8 {[%clk 0:00:18.5]} 18. hxg6 {[%clk
0:01:56.4]} 18... f6 {[%clk 0:00:10.2]} 19. Qc4 {[%clk 0:01:56.2]} 19... b5
{[%clk 0:00:09.7]} 20. Qh4 {[%clk 0:01:48.9]} 1-0

[Event "*** Titled Tuesday Blitz"]
[Site "Chess.com"]
[Date "2020.04.14"]
[Round "3"]
[White "Kirill_Klukin"]
[Black "Mfcyryd"]
[Result "0-1"]
[WhiteElo "2713"]
[BlackElo "2478"]
[TimeControl "180+1"]
[EndTime "10:26:07 PDT"]
[Termination "Mfcyryd won by resignation"]

1. d4 {[%clk 0:03:00.9]} 1... Nf6 {[%clk 0:02:57.7]} 2. Nf3 {[%clk 0:03:00.4]}
2... e6 {[%clk 0:02:57.5]} 3. g3 {[%clk 0:02:59.5]} 3... b6 {[%clk 0:02:57.5]}
4. Bg2 {[%clk 0:02:59.1]} 4... Bb7 {[%clk 0:02:58.4]} 5. O-O {[%clk 0:02:59.1]}
5... Be7 {[%clk 0:02:59]} 6. c4 {[%clk 0:02:59.7]} 6... O-O {[%clk 0:02:59.5]}
7. Nc3 {[%clk 0:03:00.2]} 7... d5 {[%clk 0:02:58.8]} 8. cxd5 {[%clk 0:03:00.2]}
8... Nxd5 {[%clk 0:02:59.7]} 9. Re1 {[%clk 0:02:55.5]} 9... c5 {[%clk
0:02:53.4]} 10. e4 {[%clk 0:02:46.4]} 10... Nxc3 {[%clk 0:02:49.1]} 11. bxc3
{[%clk 0:02:47.3]} 11... cxd4 {[%clk 0:02:45.9]} 12. cxd4 {[%clk 0:02:48.2]}
12... Nc6 {[%clk 0:02:45.3]} 13. Bb2 {[%clk 0:02:37.2]} 13... Rc8 {[%clk
0:02:43.6]} 14. Qe2 {[%clk 0:02:34]} 14... Nb4 {[%clk 0:02:41.2]} 15. Rec1
{[%clk 0:02:27.3]} 15... Ba6 {[%clk 0:02:37.4]} 16. Qd2 {[%clk 0:02:26.6]} 16...
Qd7 {[%clk 0:02:24.4]} 17. Ne5 {[%clk 0:02:14.1]} 17... Qa4 {[%clk 0:02:23.6]}
18. Bf3 {[%clk 0:01:59.4]} 18... f6 {[%clk 0:02:19.6]} 19. Bd1 {[%clk
0:01:55.7]} 19... Qb5 {[%clk 0:01:54.1]} 20. Bb3 {[%clk 0:01:20]} 20... Rxc1+
{[%clk 0:01:52.1]} 21. Rxc1 {[%clk 0:01:18.6]} 21... fxe5 {[%clk 0:01:53]} 22.
Bxe6+ {[%clk 0:01:19.2]} 22... Kh8 {[%clk 0:01:51.7]} 23. d5 {[%clk 0:01:14]}
23... Nd3 {[%clk 0:01:42.9]} 0-1

[Event "*** Titled Tuesday Blitz"]
[Site "Chess.com"]
[Date "2020.04.14"]
[Round "3"]
[White "SmoothAsAHedgehog"]
[Black "Zaven_ChessMood"]
[Result "0-1"]
[WhiteElo "2659"]
[BlackElo "2901"]
[TimeControl "180+1"]
[EndTime "10:26:09 PDT"]
[Termination "Zaven_ChessMood won by resignation"]

1. Nf3 {[%clk 0:03:00.9]} 1... d5 {[%clk 0:02:59.5]} 2. c4 {[%clk 0:02:59.5]}
2... d4 {[%clk 0:02:59.3]} 3. b4 {[%clk 0:02:58.9]} 3... g5 {[%clk 0:02:59.2]}
4. Bb2 {[%clk 0:02:56.8]} 4... Bg7 {[%clk 0:02:58.4]} 5. d3 {[%clk 0:02:56]}
5... g4 {[%clk 0:02:56]} 6. Nfd2 {[%clk 0:02:55.7]} 6... e5 {[%clk 0:02:55.6]}
7. g3 {[%clk 0:02:53.4]} 7... h5 {[%clk 0:02:55.2]} 8. h4 {[%clk 0:02:31.9]}
8... Ne7 {[%clk 0:02:52.4]} 9. Na3 {[%clk 0:02:25.5]} 9... O-O {[%clk
0:02:52.7]} 10. Bg2 {[%clk 0:02:25.5]} 10... a5 {[%clk 0:02:50.8]} 11. b5 {[%clk
0:02:25.4]} 11... Nd7 {[%clk 0:02:49.9]} 12. Qc2 {[%clk 0:02:24.9]} 12... Nc5
{[%clk 0:02:48.4]} 13. Nb3 {[%clk 0:02:12.1]} 13... Na4 {[%clk 0:02:46.9]} 14.
O-O-O {[%clk 0:01:55.9]} 14... c6 {[%clk 0:02:43.7]} 15. Nd2 {[%clk 0:01:40.4]}
15... Nxb2 {[%clk 0:02:42.4]} 16. Qxb2 {[%clk 0:01:41.3]} 16... f5 {[%clk
0:02:33.3]} 17. Kc2 {[%clk 0:01:35.4]} 17... Be6 {[%clk 0:02:33.5]} 18. Rb1
{[%clk 0:01:33.7]} 18... Rc8 {[%clk 0:02:31.4]} 19. bxc6 {[%clk 0:01:20.2]}
19... bxc6 {[%clk 0:02:32.3]} 20. Qb6 {[%clk 0:01:13.8]} 20... Qd7 {[%clk
0:02:31.1]} 21. Qc5 {[%clk 0:00:49.9]} 21... e4 {[%clk 0:02:30.4]} 22. Rb6
{[%clk 0:00:42.8]} 22... Nd5 {[%clk 0:02:27.3]} 23. Rhb1 {[%clk 0:00:29.2]}
23... Nxb6 {[%clk 0:02:23.4]} 24. Rxb6 {[%clk 0:00:30.1]} 24... Rfd8 {[%clk
0:02:23.6]} 25. Qxa5 {[%clk 0:00:24.5]} 25... Ra8 {[%clk 0:02:22.3]} 26. Ra6
{[%clk 0:00:24.9]} 26... Qb7 {[%clk 0:02:19]} 27. Rxa8 {[%clk 0:00:19.1]} 27...
Rxa8 {[%clk 0:02:19.9]} 28. Qc5 {[%clk 0:00:19.2]} 28... Qa6 {[%clk 0:02:17.4]}
29. Qe7 {[%clk 0:00:14.5]} 29... Qa4+ {[%clk 0:02:14]} 30. Kb1 {[%clk
0:00:12.3]} 30... Qd1+ {[%clk 0:02:12.3]} 31. Kb2 {[%clk 0:00:11]} 31... Qxd2+
{[%clk 0:02:12.6]} 32. Nc2 {[%clk 0:00:11.5]} 32... Rb8+ {[%clk 0:02:11.4]} 0-1

[Event "*** Titled Tuesday Blitz"]
[Site "Chess.com"]
[Date "2020.04.14"]
[Round "3"]
[White "Pavlov_Sergey"]
[Black "obliviate12"]
[Result "1-0"]
[WhiteElo "2594"]
[BlackElo "2852"]
[TimeControl "180+1"]
[EndTime "10:26:10 PDT"]
[Termination "Pavlov_Sergey won on time"]

1. c4 {[%clk 0:03:00.9]} 1... Nf6 {[%clk 0:02:59]} 2. Nf3 {[%clk 0:02:59.6]}
2... e6 {[%clk 0:02:59]} 3. g3 {[%clk 0:02:59.5]} 3... d5 {[%clk 0:02:59.4]} 4.
Bg2 {[%clk 0:03:00]} 4... dxc4 {[%clk 0:02:59.8]} 5. Qa4+ {[%clk 0:02:59.6]}
5... Nbd7 {[%clk 0:02:59.3]} 6. Qxc4 {[%clk 0:02:59.2]} 6... c5 {[%clk 0:02:59]}
7. d3 {[%clk 0:02:54.5]} 7... a6 {[%clk 0:02:58.1]} 8. Qc2 {[%clk 0:02:47.8]}
8... b6 {[%clk 0:02:54]} 9. Ne5 {[%clk 0:02:47.4]} 9... Nd5 {[%clk 0:02:53.6]}
10. Nxd7 {[%clk 0:02:41.7]} 10... Qxd7 {[%clk 0:02:52.4]} 11. O-O {[%clk
0:02:39.9]} 11... Bb7 {[%clk 0:02:51.9]} 12. Nc3 {[%clk 0:02:38.9]} 12... Be7
{[%clk 0:02:43.3]} 13. a3 {[%clk 0:02:35.7]} 13... O-O {[%clk 0:02:41.9]} 14.
Bd2 {[%clk 0:02:35]} 14... Rac8 {[%clk 0:02:41.3]} 15. Qb3 {[%clk 0:02:30.8]}
15... b5 {[%clk 0:02:18.3]} 16. a4 {[%clk 0:02:30.3]} 16... c4 {[%clk
0:02:17.9]} 17. dxc4 {[%clk 0:02:30.1]} 17... bxc4 {[%clk 0:02:17.7]} 18. Qd1
{[%clk 0:02:29]} 18... Nb4 {[%clk 0:02:13.5]} 19. Be3 {[%clk 0:02:22.3]} 19...
Qc7 {[%clk 0:02:09]} 20. Bf4 {[%clk 0:02:20.2]} 20... Qb6 {[%clk 0:02:05.5]} 21.
a5 {[%clk 0:02:00.9]} 21... Qa7 {[%clk 0:02:05]} 22. Qd7 {[%clk 0:01:56.5]} 1-0

[Event "*** Titled Tuesday Blitz"]
[Site "Chess.com"]
[Date "2020.04.14"]
[Round "3"]
[White "Hadza_3"]
[Black "JustWatch000"]
[Result "0-1"]
[WhiteElo "2398"]
[BlackElo "2626"]
[TimeControl "180+1"]
[EndTime "10:26:20 PDT"]
[Termination "JustWatch000 won by resignation"]

1. e4 {[%clk 0:03:00.9]} 1... d6 {[%clk 0:02:57.5]} 2. Nc3 {[%clk 0:03:00.7]}
2... Nf6 {[%clk 0:02:57.8]} 3. f4 {[%clk 0:03:01.6]} 3... g6 {[%clk 0:02:57.7]}
4. Nf3 {[%clk 0:03:01.9]} 4... Bg7 {[%clk 0:02:58.1]} 5. Bc4 {[%clk 0:03:02.5]}
5... O-O {[%clk 0:02:58.4]} 6. O-O {[%clk 0:03:03]} 6... Nc6 {[%clk 0:02:57.5]}
7. d3 {[%clk 0:03:03.1]} 7... Bg4 {[%clk 0:02:57.8]} 8. h3 {[%clk 0:03:02.6]}
8... Bxf3 {[%clk 0:02:58]} 9. Qxf3 {[%clk 0:03:03.5]} 9... Nd4 {[%clk
0:02:58.4]} 10. Qf2 {[%clk 0:03:04.1]} 10... c5 {[%clk 0:02:58.9]} 11. a4 {[%clk
0:02:56.8]} 11... e6 {[%clk 0:02:58.4]} 12. Be3 {[%clk 0:02:50.7]} 12... a6
{[%clk 0:02:42.7]} 13. Rac1 {[%clk 0:02:30.3]} 13... Rc8 {[%clk 0:02:17.5]} 14.
Qh4 {[%clk 0:02:28.6]} 14... d5 {[%clk 0:02:11.6]} 15. Ba2 {[%clk 0:02:27.6]}
15... b5 {[%clk 0:02:07]} 16. f5 {[%clk 0:02:22.6]} 16... exf5 {[%clk
0:02:03.3]} 17. Bg5 {[%clk 0:02:19.2]} 17... h6 {[%clk 0:02:00.5]} 18. Bxh6
{[%clk 0:02:18]} 18... dxe4 {[%clk 0:01:48.3]} 19. Bg5 {[%clk 0:02:01.1]} 19...
Qb6 {[%clk 0:01:42.8]} 20. a5 {[%clk 0:01:56.9]} 20... Qd6 {[%clk 0:01:37.2]}
21. dxe4 {[%clk 0:01:51]} 21... Nxe4 {[%clk 0:01:36.9]} 22. Nxe4 {[%clk
0:01:41.1]} 22... fxe4 {[%clk 0:01:37.8]} 23. Be7 {[%clk 0:01:40.6]} 23... Ne2+
{[%clk 0:01:37.6]} 24. Kf2 {[%clk 0:01:26.2]} 24... Qd2 {[%clk 0:01:31.2]} 25.
Rfd1 {[%clk 0:01:15.7]} 25... Bd4+ {[%clk 0:01:25.1]} 26. Kf1 {[%clk 0:01:12.1]}
26... Qe3 {[%clk 0:01:25.4]} 27. Rxd4 {[%clk 0:01:04.1]} 27... cxd4 {[%clk
0:01:20.6]} 28. Bd6 {[%clk 0:00:43.4]} 28... Qxc1+ {[%clk 0:01:18.6]} 0-1

[Event "*** Titled Tuesday Blitz"]
[Site "Chess.com"]
[Date "2020.04.14"]
[Round "3"]
[White "K_A_S_T_O_R"]
[Black "DrVelja"]
[Result "1-0"]
[WhiteElo "2840"]
[BlackElo "2628"]
[TimeControl "180+1"]
[EndTime "10:26:24 PDT"]
[Termination "K_A_S_T_O_R won by resignation"]

1. e4 {[%clk 0:03:00.9]} 1... c5 {[%clk 0:02:59.9]} 2. Nf3 {[%clk 0:02:56.5]}
2... Nc6 {[%clk 0:03:00.3]} 3. d4 {[%clk 0:02:55.8]} 3... cxd4 {[%clk
0:03:01.2]} 4. Nxd4 {[%clk 0:02:56.1]} 4... Nf6 {[%clk 0:03:01.9]} 5. Nc3 {[%clk
0:02:55.8]} 5... e5 {[%clk 0:03:02.6]} 6. Ndb5 {[%clk 0:02:55.9]} 6... d6 {[%clk
0:03:03]} 7. Bg5 {[%clk 0:02:56.2]} 7... a6 {[%clk 0:03:03.5]} 8. Na3 {[%clk
0:02:56.7]} 8... b5 {[%clk 0:03:04.4]} 9. Nd5 {[%clk 0:02:57.2]} 9... Be7 {[%clk
0:03:04.2]} 10. Bxf6 {[%clk 0:02:57.5]} 10... Bxf6 {[%clk 0:03:05.1]} 11. c3
{[%clk 0:02:58]} 11... O-O {[%clk 0:02:58.2]} 12. Nc2 {[%clk 0:02:56.9]} 12...
Rb8 {[%clk 0:02:58.2]} 13. h4 {[%clk 0:02:53.5]} 13... g6 {[%clk 0:02:51.8]} 14.
g3 {[%clk 0:02:51.8]} 14... Bg7 {[%clk 0:02:46.3]} 15. h5 {[%clk 0:02:51.2]}
15... a5 {[%clk 0:02:37.8]} 16. a3 {[%clk 0:02:45.6]} 16... Be6 {[%clk
0:02:19.5]} 17. Nce3 {[%clk 0:02:40.5]} 17... Ne7 {[%clk 0:01:39.8]} 18. hxg6
{[%clk 0:02:36.6]} 18... hxg6 {[%clk 0:01:39.7]} 19. Bh3 {[%clk 0:02:27.9]}
19... f5 {[%clk 0:01:29.5]} 20. exf5 {[%clk 0:02:19.1]} 20... gxf5 {[%clk
0:01:28.3]} 21. Bg2 {[%clk 0:01:58.8]} 21... f4 {[%clk 0:01:15.3]} 22. Nxe7+
{[%clk 0:01:35]} 22... Qxe7 {[%clk 0:01:15.1]} 23. Nd5 {[%clk 0:01:34.3]} 23...
Qf7 {[%clk 0:01:06.3]} 24. Qd3 {[%clk 0:01:25.5]} 24... Bh8 {[%clk 0:00:47.2]}
25. Be4 {[%clk 0:01:15.8]} 25... fxg3 {[%clk 0:00:40]} 26. Bh7+ {[%clk
0:01:13.1]} 26... Kg7 {[%clk 0:00:39.9]} 27. Qxg3+ {[%clk 0:01:13.6]} 1-0

[Event "*** Titled Tuesday Blitz"]
[Site "Chess.com"]
[Date "2020.04.14"]
[Round "3"]
[White "Olga_Zhuravleva"]
[Black "shyam"]
[Result "0-1"]
[WhiteElo "2229"]
[BlackElo "2633"]
[TimeControl "180+1"]
[EndTime "10:26:24 PDT"]
[Termination "shyam won by resignation"]

1. e4 {[%clk 0:03:00.9]} 1... c5 {[%clk 0:02:59.5]} 2. Nf3 {[%clk 0:03:00.1]}
2... Nc6 {[%clk 0:02:59.9]} 3. Nc3 {[%clk 0:02:59.8]} 3... Nf6 {[%clk
0:02:53.8]} 4. e5 {[%clk 0:02:59.1]} 4... Ng4 {[%clk 0:02:53.7]} 5. Qe2 {[%clk
0:02:59.4]} 5... g6 {[%clk 0:02:53]} 6. d4 {[%clk 0:02:42.8]} 6... cxd4 {[%clk
0:02:48.4]} 7. Nb5 {[%clk 0:02:42.6]} 7... Bg7 {[%clk 0:02:34.8]} 8. Bf4 {[%clk
0:01:56.8]} 8... Qa5+ {[%clk 0:02:07.6]} 9. Bd2 {[%clk 0:01:50.7]} 9... Qb6
{[%clk 0:02:07]} 10. Qe4 {[%clk 0:01:06.7]} 10... Ngxe5 {[%clk 0:02:00.2]} 11.
Nxe5 {[%clk 0:00:56.3]} 11... Nxe5 {[%clk 0:02:01.1]} 12. O-O-O {[%clk
0:00:49.9]} 12... f5 {[%clk 0:01:34.7]} 13. Qh4 {[%clk 0:00:33.1]} 13... d3
{[%clk 0:01:31.9]} 14. Nc3 {[%clk 0:00:18.9]} 14... dxc2 {[%clk 0:01:22.5]} 15.
Kxc2 {[%clk 0:00:19.8]} 15... e6 {[%clk 0:01:22.1]} 16. Bg5 {[%clk 0:00:19]}
16... Kf7 {[%clk 0:01:18.9]} 17. Be3 {[%clk 0:00:19.3]} 17... Qd8 {[%clk
0:01:11]} 18. h3 {[%clk 0:00:19.7]} 18... Qxh4 {[%clk 0:01:10.8]} 0-1

[Event "*** Titled Tuesday Blitz"]
[Site "Chess.com"]
[Date "2020.04.14"]
[Round "3"]
[White "tamarozi99"]
[Black "smshk35"]
[Result "0-1"]
[WhiteElo "1958"]
[BlackElo "2283"]
[TimeControl "180+1"]
[EndTime "10:26:26 PDT"]
[Termination "smshk35 won by resignation"]

1. e4 {[%clk 0:03:00.9]} 1... c5 {[%clk 0:02:58.8]} 2. Nf3 {[%clk 0:03:00.3]}
2... Nc6 {[%clk 0:02:59.1]} 3. d4 {[%clk 0:02:57.5]} 3... cxd4 {[%clk 0:03:00]}
4. Nxd4 {[%clk 0:02:58]} 4... Qb6 {[%clk 0:03:00.3]} 5. Nb3 {[%clk 0:02:49.6]}
5... Nf6 {[%clk 0:03:00.2]} 6. Nc3 {[%clk 0:02:49]} 6... e6 {[%clk 0:02:59.4]}
7. Be3 {[%clk 0:02:43.8]} 7... Qc7 {[%clk 0:02:58.8]} 8. Be2 {[%clk 0:02:40.7]}
8... Bb4 {[%clk 0:02:58.3]} 9. f3 {[%clk 0:02:23]} 9... d5 {[%clk 0:02:56.8]}
10. O-O {[%clk 0:02:14.9]} 10... Bxc3 {[%clk 0:02:56.9]} 11. bxc3 {[%clk
0:02:14.4]} 11... O-O {[%clk 0:02:52.7]} 12. Bg5 {[%clk 0:01:28.8]} 12... Qe5
{[%clk 0:02:20.9]} 13. f4 {[%clk 0:01:04.4]} 13... Qxc3 {[%clk 0:02:20.2]} 14.
e5 {[%clk 0:00:53.7]} 14... Ne4 {[%clk 0:02:20.1]} 15. Bh4 {[%clk 0:00:42.8]}
15... b6 {[%clk 0:01:50.9]} 16. Bd3 {[%clk 0:00:42.1]} 16... Bb7 {[%clk
0:01:45.2]} 17. Be1 {[%clk 0:00:22.4]} 17... Qb2 {[%clk 0:01:44.7]} 18. a4
{[%clk 0:00:13.1]} 18... Nd4 {[%clk 0:01:38.3]} 19. Bxe4 {[%clk 0:00:07.7]}
19... Nxb3 {[%clk 0:01:37]} 20. cxb3 {[%clk 0:00:04.7]} 20... dxe4 {[%clk
0:01:35.6]} 21. Qd2 {[%clk 0:00:02.9]} 21... Qxa1 {[%clk 0:01:33.9]} 0-1

[Event "*** Titled Tuesday Blitz"]
[Site "Chess.com"]
[Date "2020.04.14"]
[Round "3"]
[White "Vincent_Vega95"]
[Black "SahaNeelash"]
[Result "1-0"]
[WhiteElo "2772"]
[BlackElo "2554"]
[TimeControl "180+1"]
[EndTime "10:26:28 PDT"]
[Termination "Vincent_Vega95 won by checkmate"]

1. Nf3 {[%clk 0:03:00.2]} 1... d6 {[%clk 0:02:59.4]} 2. c4 {[%clk 0:03:00.7]}
2... e5 {[%clk 0:02:58.8]} 3. Nc3 {[%clk 0:02:59.6]} 3... Nc6 {[%clk 0:02:58.1]}
4. d4 {[%clk 0:02:56.7]} 4... g6 {[%clk 0:02:47.3]} 5. dxe5 {[%clk 0:02:55]}
5... Nxe5 {[%clk 0:02:48.2]} 6. Nxe5 {[%clk 0:02:48.9]} 6... dxe5 {[%clk
0:02:49.1]} 7. Qxd8+ {[%clk 0:02:49.3]} 7... Kxd8 {[%clk 0:02:49.8]} 8. h4
{[%clk 0:02:39.1]} 8... Be6 {[%clk 0:02:43.1]} 9. b3 {[%clk 0:02:27]} 9... c6
{[%clk 0:02:28.5]} 10. h5 {[%clk 0:02:23.8]} 10... Kc7 {[%clk 0:02:19]} 11. Bb2
{[%clk 0:02:23.4]} 11... Bb4 {[%clk 0:02:05.1]} 12. a3 {[%clk 0:02:21.6]} 12...
Bd6 {[%clk 0:02:00.4]} 13. hxg6 {[%clk 0:02:15.3]} 13... fxg6 {[%clk 0:01:56.8]}
14. Ne4 {[%clk 0:02:15]} 14... Bf5 {[%clk 0:01:51.4]} 15. Nxd6 {[%clk 0:02:12]}
15... Kxd6 {[%clk 0:01:52.3]} 16. f4 {[%clk 0:01:24.2]} 16... Ke6 {[%clk
0:01:45]} 17. Bxe5 {[%clk 0:01:24]} 17... Nf6 {[%clk 0:01:45.1]} 18. O-O-O
{[%clk 0:01:24.6]} 18... Rad8 {[%clk 0:01:23.8]} 19. Rxd8 {[%clk 0:01:24.8]}
19... Rxd8 {[%clk 0:01:23.3]} 20. Bxf6 {[%clk 0:01:25.5]} 20... Kxf6 {[%clk
0:01:24.2]} 21. Rxh7 {[%clk 0:01:25.5]} 21... b5 {[%clk 0:01:18.9]} 22. Rc7
{[%clk 0:01:13.5]} 22... Rd6 {[%clk 0:01:09.4]} 23. e3 {[%clk 0:01:11.2]} 23...
a6 {[%clk 0:01:05.2]} 24. Ra7 {[%clk 0:01:05.2]} 24... bxc4 {[%clk 0:00:48.8]}
25. Bxc4 {[%clk 0:01:04.7]} 25... Be4 {[%clk 0:00:47.1]} 26. g4 {[%clk
0:01:02.9]} 26... Bf3 {[%clk 0:00:46.8]} 27. Rf7# {[%clk 0:01:02]} 1-0